bitfinex/quotes_SOLUSD_20250401
["timestamp","ask_amount","ask_price","bid_price","bid_amount"]
[1743480006977,12.43222624,126.31,126.26,18.79181043]
[1743480007673,10.98252248,126.33,126.26,18.79181043]
[1743480008074,0.03,126.33,126.29,0.14216157]
[1743480008251,0.03,126.33,126.31,18.933972]
[1743480008452,0.03,126.33,126.31,18.79181043]
[1743480008980,0.03,126.33,126.32,7.9164]
[1743480010185,0.03,126.33,126.32,14.6764]
[1743480010401,9.48312248,126.33,126.25,238.63958682]
[1743480010572,9.45312248,126.3,126.26,14.6801]
[1743480010765,9.45312248,126.29,126.26,14.6801]
[1743480010965,9.45312248,126.29,126.26,33.32974886]
[1743480011270,9.45312248,126.3,126.26,33.32974886]
[1743480011476,9.45312248,126.3,126.26,14.6801]
[1743480011768,9.45312248,126.29,126.27,18.64964886]
[1743480011971,9.45312248,126.3,126.27,18.64964886]
[1743480014907,9.45312248,126.3,126.27,26.56904886]
[1743480015196,9.45312248,126.3,126.27,18.64964886]
[1743480019601,9.45312248,126.29,126.27,18.64964886]
[1743480025394,9.45312248,126.29,126.27,26.56894886]
[1743480030405,9.48312248,126.3,126.27,26.56894886]
[1743480031888,9.45312248,126.29,126.27,18.64964886]
[1743480032089,9.45312248,126.28,126.26,6.76]
[1743480033995,9.45312248,126.28,126.25,25.40964886]
[1743480034811,9.45312248,126.28,126.25,18.64964886]
[1743480034980,9.45312248,126.27,126.25,18.64964886]
[1743480035900,9.45312248,126.26,126.23,25.40964886]
[1743480036223,9.45312248,126.25,126.23,33.33154886]
[1743480045206,9.45312248,126.24,126.23,6.76]
[1743480045392,9.45312248,126.24,126.22,7.9224]
[1743480045593,9.45312248,126.23,126.21,7.9231]
[1743480045791,9.45312248,126.22,126.21,7.9231]
[1743480045989,9.45312248,126.22,126.2,33.39624886]
[1743480046389,9.45312248,126.22,126.2,26.63624886]
[1743480048210,9.45312248,126.21,126.2,7.9869]
[1743480049614,9.45312248,126.22,126.2,7.9869]
[1743480052311,9.45312248,126.21,126.2,0.063]
[1743480060904,37.81248992,126.24,126.2,0.063]
[1743480061109,9.45312248,126.22,126.2,0.063]
[1743480063796,9.45312248,126.21,126.2,0.063]
[1743480066125,9.45312248,126.21,126.2,18.71264886]
[1743480066320,9.45312248,126.22,126.2,18.71264886]
[1743480068631,9.45312248,126.22,126.21,7.9233]
[1743480070830,20.0,126.24,126.21,7.9233]
[1743480071138,9.45312248,126.22,126.21,7.9233]
[1743480071329,9.45312248,126.22,126.2,7.9867]
[1743480073037,9.45312248,126.22,126.2,18.71264886]
[1743480073732,9.45312248,126.23,126.2,18.71264886]
[1743480075108,9.45312248,126.23,126.21,7.9233]
[1743480076028,9.45312248,126.24,126.21,7.9233]
[1743480077333,9.45312248,126.24,126.22,18.64964886]
[1743480077638,9.45312248,126.24,126.22,25.40964886]
[1743480079931,9.45312248,126.24,126.23,7.922]
[1743480080534,9.48312248,126.25,126.23,26.57164886]
[1743480080740,0.03,126.25,126.24,18.64964886]
[1743480081035,0.03,126.25,126.23,7.922]
[1743480081238,0.03,126.25,126.23,26.57164886]
[1743480095148,0.03,126.25,126.24,26.71321043]
[1743480095566,0.0001,126.25,126.24,26.855372]
[1743480098748,0.0001,126.25,126.24,28.406472]
[1743480099264,0.0001,126.25,126.24,34.848772]
[1743480106384,0.03,126.3,126.24,94.259272]
[1743480106982,0.03,126.3,126.27,0.14216157]
[1743480107162,0.03,126.3,126.29,26.56784886]
[1743480111589,0.03,126.3,126.29,26.71001043]
[1743480111764,0.03,126.33,126.29,46.50571043]
[1743480114951,0.03,126.33,126.3,0.14216157]
[1743480115480,0.03,126.33,126.32,18.64964886]
[1743480115676,0.03,126.33,126.32,25.38964886]
[1743480116182,0.03,126.33,126.32,25.53181043]
[1743480117556,0.03,126.33,126.32,33.44821043]
[1743480127302,9.45312248,126.36,126.33,0.14216157]
[1743480127478,9.45312248,126.37,126.33,0.14216157]
[1743480127794,9.45312248,126.37,126.35,18.64964886]
[1743480128183,9.48312248,126.38,126.36,25.53181043]
[1743480128593,9.48312248,126.38,126.37,18.64964886]
[1743480129279,9.48312248,126.38,126.37,7.9132]
[1743480134407,0.03,126.38,126.37,7.9132]
[1743480136201,0.03,126.38,126.37,8.05536157]
[1743480138082,0.03,126.38,126.37,7.9132]
[1743480138411,9.48312248,126.38,126.36,14.6536]
[1743480138575,9.45312248,126.37,126.36,33.30324886]
[1743480139400,9.45312248,126.37,126.36,25.38964886]
[1743480139589,9.45312248,126.37,126.36,18.64964886]
[1743480140303,9.45312248,126.37,126.35,18.64964886]
[1743480140479,9.45312248,126.36,126.35,18.64964886]
[1743480140883,9.45312248,126.36,126.34,6.74]
[1743480141101,9.45312248,126.35,126.34,25.38964886]
[1743480142213,9.45312248,126.35,126.34,33.30474886]
[1743480146687,9.45312248,126.37,126.34,33.30474886]
[1743480150383,9.45312248,126.36,126.34,33.30474886]
[1743480150801,9.45312248,126.37,126.34,33.30474886]
[1743480152506,9.45312248,126.36,126.34,33.30474886]
[1743480154808,9.45312248,126.37,126.34,33.30474886]
[1743480155196,9.45312248,126.37,126.35,18.64964886]
[1743480155403,9.48312248,126.38,126.35,18.64964886]
[1743480156708,9.45312248,126.37,126.35,18.64964886]
[1743480157218,9.45312248,126.37,126.36,7.9138]
[1743480157409,9.45312248,126.37,126.36,26.56344886]
[1743480157707,9.45312248,126.37,126.36,18.64964886]
[1743480159418,9.45312248,126.37,126.36,26.56344886]
[1743480159721,0.03,126.38,126.37,18.64964886]
[1743480160017,0.03,126.38,126.36,7.9138]
[1743480160714,9.48312248,126.38,126.36,7.9138]
[1743480162118,0.03,126.38,126.36,7.9138]
[1743480163205,9.48312248,126.38,126.36,7.9138]
[1743480166618,0.03,126.38,126.36,7.9138]
[1743480168717,0.03,126.38,126.37,18.64964886]
[1743480171021,0.03,126.38,126.37,7.9132]
[1743480172912,0.03,126.38,126.37,18.64964886]
[1743480174422,0.03,126.38,126.37,7.9132]
[1743480175833,0.03,126.38,126.37,8.05536157]
[1743480175999,0.03,126.38,126.37,26.70501043]
[1743480177039,20.0,126.43,126.38,18.64964886]
[1743480177327,20.0,126.43,126.39,6.74]
[1743480177328,9.45312248,126.42,126.39,6.74]
[1743480177936,9.45312248,126.42,126.41,7.9107]
[1743480178923,9.45312248,126.43,126.41,26.56034886]
[1743480183833,9.45312248,126.42,126.41,26.56034886]
[1743480187637,9.45312248,126.43,126.41,26.56034886]
[1743480187845,0.03,126.46,126.41,26.56034886]
[1743480188139,9.45312248,126.44,126.41,26.56034886]
[1743480188438,9.45312248,126.44,126.41,46.33724886]
[1743480188629,9.45312248,126.43,126.41,46.33724886]
[1743480189009,0.03,126.46,126.41,46.33724886]
[1743480189010,9.45312248,126.42,126.41,46.33724886]
[1743480189241,9.45312248,126.42,126.41,26.56034886]
[1743480194951,9.48312248,126.43,126.41,26.56034886]
[1743480195842,9.45312248,126.42,126.41,26.56034886]
[1743480202447,9.48312248,126.42,126.41,26.56034886]
[1743480203344,0.03,126.42,126.41,26.56034886]
[1743480203619,0.03,126.42,126.41,26.70251043]
[1743480205255,9.48312248,126.42,126.41,26.70251043]
[1743480208450,0.03,126.42,126.41,26.70251043]
[1743480208941,0.03,126.42,126.41,26.56034886]
[1743480209147,9.48312248,126.42,126.41,18.64964886]
[1743480209358,47.2956124,126.42,126.38,0.063]
[1743480209565,9.45312248,126.39,126.38,0.063]
[1743480211041,17.36512248,126.39,126.38,0.063]
[1743480214339,9.45312248,126.39,126.38,0.063]
[1743480220552,0.03,126.42,126.38,0.063]
[1743480220847,0.03,126.42,126.4,18.64964886]
[1743480222758,0.03,126.42,126.4,26.56094886]
[1743480224854,0.03,126.42,126.4,18.64964886]
[1743480225041,9.48312248,126.42,126.4,18.64964886]
[1743480225357,9.45312248,126.41,126.4,18.64964886]
[1743480237273,9.48312248,126.41,126.4,18.64964886]
[1743480242178,0.03,126.41,126.4,18.64964886]
[1743480243184,0.03,126.41,126.4,26.56094886]
[1743480248887,9.48312248,126.41,126.4,18.64964886]
[1743480254591,0.03,126.41,126.4,18.64964886]
[1743480254897,0.03,126.41,126.4,28.19784886]
[1743480260600,0.03,126.41,126.4,28.34001043]
[1743480271289,0.03,126.41,126.4,28.482172]
[1743480275104,0.03,126.41,126.4,18.64964886]
[1743480275303,29.48312248,126.41,126.38,0.063]
[1743480275505,9.45312248,126.39,126.38,0.063]
[1743480281010,9.45312248,126.4,126.38,0.063]
[1743480282715,9.45312248,126.4,126.39,18.64964886]
[1743480283011,9.45312248,126.4,126.38,0.063]
[1743480284913,0.03,126.41,126.38,0.063]
[1743480285319,0.03,126.41,126.39,18.79181043]
[1743480285496,0.03,126.41,126.4,25.38964886]
[1743480287014,0.03,126.41,126.4,33.30094886]
[1743480288199,0.03,126.41,126.4,33.585272]
[1743480294811,0.03,126.41,126.4,39.646172]
[1743480300540,0.03,126.41,126.4,18.64964886]
[1743480300713,9.48312248,126.41,126.4,18.64964886]
[1743480300916,9.48312248,126.41,126.38,0.063]
[1743480301237,9.45312248,126.39,126.38,0.063]
[1743480308444,17.36512248,126.39,126.38,0.063]
[1743480309043,9.48312248,126.39,126.38,0.063]
[1743480311146,17.39512248,126.39,126.38,0.063]
[1743480311742,9.48312248,126.39,126.38,0.063]
[1743480311928,17.39512248,126.39,126.38,0.063]
[1743480312623,9.48312248,126.39,126.38,0.063]
[1743480313037,9.48312248,126.39,126.33,81.763]
[1743480313038,20.0,126.36,126.3,0.063]
[1743480313237,47.2656124,126.31,126.3,0.063]
[1743480313439,47.2656124,126.31,126.25,0.063]
[1743480313643,9.45312248,126.26,126.25,0.063]
[1743480313846,17.37322248,126.26,126.25,0.063]
[1743480314729,9.45312248,126.26,126.25,0.063]
[1743480314935,17.37322248,126.26,126.25,0.063]
[1743480315461,20.0,126.24,126.23,12.5047212]
[1743480315622,67.2656124,126.24,126.22,24.8834424]
[1743480315826,9.45312248,126.23,126.22,24.8834424]
[1743480316036,9.45312248,126.23,126.21,0.063]
[1743480316538,9.45312248,126.22,126.21,0.063]
[1743480325752,9.45312248,126.22,126.17,7.9888]
[1743480325953,9.45312248,126.21,126.17,7.9888]
[1743480329360,9.45312248,126.22,126.17,7.9888]
[1743480329863,9.45312248,126.22,126.17,27.8033]
[1743480338165,9.45312248,126.21,126.17,27.8033]
[1743480341361,29.45312248,126.22,126.17,27.8033]
[1743480343058,9.45312248,126.21,126.17,27.8033]
[1743480343572,9.45312248,126.2,126.18,18.64964886]
[1743480343870,9.45312248,126.2,126.18,7.9247]
[1743480344870,9.45312248,126.2,126.17,0.063]
[1743480346072,9.45312248,126.19,126.17,0.063]
[1743480346674,9.45312248,126.2,126.17,0.063]
[1743480347565,9.45312248,126.2,126.16,46.53431043]
[1743480358080,9.45312248,126.19,126.16,53.27431043]
[1743480359567,9.45312248,126.2,126.16,53.27431043]
[1743480359879,0.03,126.2,126.16,53.33731043]
[1743480361076,0.03,126.2,126.17,0.14216157]
[1743480362679,0.03,126.2,126.18,7.9251]
[1743480362876,0.03,126.2,126.19,18.79181043]
[1743480364977,0.03,126.2,126.19,8.06666157]
[1743480373880,0.03,126.2,126.19,26.71631043]
[1743480376597,0.03,126.2,126.19,26.858472]
[1743480377205,0.03,126.22,126.21,0.14216157]
[1743480377387,0.03,126.22,126.21,25.53181043]
[1743480378393,0.03,126.22,126.21,33.45511043]
[1743480378572,0.03,126.22,126.21,25.38964886]
[1743480380190,9.48312248,126.22,126.21,25.38964886]
[1743480380698,0.03,126.22,126.21,25.38964886]
[1743480381598,9.48312248,126.22,126.21,6.74]
[1743480382808,9.48312248,126.22,126.18,6.74]
[1743480382978,9.45312248,126.2,126.19,18.64964886]
[1743480383608,9.45312248,126.2,126.18,6.74]
[1743480383909,9.45312248,126.2,126.18,14.6651]
[1743480384214,9.45312248,126.21,126.2,0.063]
[1743480386978,9.48312248,126.22,126.2,0.063]
[1743480390613,9.45312248,126.21,126.2,0.063]
[1743480395592,9.48312248,126.22,126.2,0.063]
[1743480398606,9.45312248,126.21,126.2,0.063]
[1743480400611,17.37642248,126.21,126.2,0.063]
[1743480407394,26.82765235,126.21,126.2,0.063]
[1743480408129,26.96981392,126.21,126.2,0.063]
[1743480408412,67.2656124,126.18,126.17,0.063]
[1743480409312,75.1907124,126.18,126.17,0.063]
[1743480411192,75.33287397,126.18,126.17,0.063]
[1743480411394,76.83227397,126.18,126.16,0.063]
[1743480411598,9.45312248,126.17,126.16,0.063]
[1743480411799,21.26639273,126.17,126.16,0.063]
[1743480411999,21.4085543,126.17,126.16,0.063]
[1743480413717,29.3343543,126.17,126.16,0.063]
[1743480414934,0.14216157,126.16,126.15,0.063]
[1743480415225,21.4085543,126.16,126.15,0.063]
[1743480416105,29.3349543,126.16,126.15,0.063]
[1743480416718,29.8349543,126.16,126.15,0.063]
[1743480418402,29.3349543,126.16,126.15,0.063]
[1743480420801,20.0,126.13,126.1,0.063]
[1743480421139,9.45312248,126.11,126.09,0.063]
[1743480421343,30.37754219,126.1,126.09,0.063]
[1743480421511,41.26639273,126.1,126.09,0.063]
[1743480423524,49.3387543,126.1,126.09,0.063]
[1743480424024,49.3387543,126.1,126.08,0.063]
[1743480424025,0.14216157,126.09,126.08,0.063]
[1743480424318,21.4085543,126.09,126.07,0.063]
[1743480424522,9.59528405,126.08,126.07,0.063]
[1743480424910,21.4085543,126.08,126.07,0.063]
[1743480425333,29.3399543,126.08,126.07,0.063]
[1743480427335,21.4085543,126.08,126.07,0.063]
[1743480429030,21.26639273,126.08,126.07,0.063]
[1743480433032,9.45312248,126.08,126.07,0.063]
[1743480439437,17.52668405,126.08,126.07,0.063]
[1743480439640,67.15244422,126.08,126.07,0.063]
[1743480440132,29.3399543,126.08,126.07,0.063]
[1743480441037,29.3399543,126.08,126.06,0.063]
[1743480441336,17.38522248,126.07,126.06,0.063]
[1743480444154,17.66954562,126.07,126.06,0.063]
[1743480444353,64.93326541,126.07,126.06,0.063]
[1743480445858,27.12077549,126.07,126.06,0.063]
[1743480447155,68.87962741,126.07,126.06,0.063]
[1743480449841,31.06713749,126.07,126.06,0.063]
[1743480450537,68.87962741,126.07,126.06,0.063]
[1743480451436,20.14216157,126.05,126.04,0.063]
[1743480451636,29.45312248,126.05,126.04,0.063]
[1743480453253,29.59528405,126.05,126.04,0.063]
[1743480453452,29.45312248,126.05,126.04,0.063]
[1743480458460,9.45312248,126.05,126.04,0.063]
[1743480460665,9.48312248,126.06,126.04,0.063]
[1743480460844,9.45312248,126.05,126.04,0.063]
[1743480461663,9.48312248,126.06,126.04,0.063]
[1743480464066,0.03,126.06,126.04,25.19494886]
[1743480465279,0.03,126.06,126.05,26.58294886]
[1743480468958,0.03,126.06,126.05,7.9333]
[1743480469146,0.03,126.06,126.05,26.58294886]
[1743480470173,0.03,126.06,126.05,26.64594886]
[1743480474878,9.48312248,126.06,126.05,26.64594886]
[1743480480668,9.48312248,126.06,126.05,18.71264886]
[1743480480970,9.48312248,126.06,126.05,0.063]
[1743480482577,0.03,126.06,126.05,0.063]
[1743480483267,9.48312248,126.06,126.05,0.063]
[1743480500894,0.03,126.06,126.05,18.71264886]
[1743480501098,0.03,126.06,126.05,24.87211043]
[1743480501402,0.03,126.06,126.05,26.37741043]
[1743480502501,0.03,126.06,126.05,34.31071043]
[1743480502707,0.0001,126.06,126.05,34.31071043]
[1743480502906,0.0001,126.06,126.05,34.452872]
[1743480506814,13.89264854,126.16,126.06,20.28432314]
[1743480507110,9.45312248,126.14,126.1,18.64964886]
[1743480507311,9.45312248,126.14,126.11,6.76]
[1743480508613,9.45312248,126.14,126.13,18.64964886]
[1743480513624,9.45312248,126.14,126.11,6.76]
[1743480513821,9.45312248,126.13,126.12,18.64964886]
[1743480514119,9.45312248,126.13,126.08,6.76]
[1743480514340,9.45312248,126.1,126.09,18.64964886]
[1743480516012,9.45312248,126.1,126.08,6.76]
[1743480516227,9.45312248,126.09,126.06,18.64964886]
[1743480516407,9.45312248,126.08,126.06,18.64964886]
[1743480516602,9.45312248,126.08,126.05,0.063]
[1743480516808,9.45312248,126.07,126.05,0.063]
[1743480517021,9.45312248,126.07,126.05,18.71264886]
[1743480519343,1.49136495,126.13,126.05,26.64574886]
[1743480519344,7.9295,126.11,126.05,26.64574886]
[1743480519524,9.45312248,126.1,126.05,26.64574886]
[1743480520136,9.45312248,126.11,126.08,18.64964886]
[1743480520318,9.45312248,126.11,126.09,6.76]
[1743480522323,9.45312248,126.11,126.09,14.6908]
[1743480524233,3.47185764,126.16,126.1,18.64964886]
[1743480524528,9.45312248,126.16,126.11,0.14216157]
[1743480525536,9.45312248,126.16,126.13,18.64964886]
[1743480525718,9.45312248,126.16,126.13,25.40964886]
[1743480526909,9.45312248,126.16,126.14,7.9276]
[1743480536844,20.0,126.17,126.15,18.64964886]
[1743480537143,9.45312248,126.18,126.15,7.9264]
[1743480538324,9.45312248,126.17,126.14,26.57724886]
[1743480540338,9.45312248,126.18,126.14,46.39644886]
[1743480540841,0.03,126.17,126.15,0.14216157]
[1743480541628,0.03,126.17,126.16,26.57604886]
[1743480544924,0.03,126.17,126.16,18.64964886]
[1743480545247,9.48312248,126.17,126.16,18.64964886]
[1743480545630,9.44483762,126.17,126.16,18.64964886]
[1743480548048,9.45312248,126.18,126.17,18.64964886]
[1743480548247,9.45312248,126.18,126.16,7.9264]
[1743480548752,9.45312248,126.18,126.15,7.927]
[1743480549142,9.45312248,126.17,126.15,7.927]
[1743480550557,9.45312248,126.16,126.14,26.57704886]
[1743480556863,9.45312248,126.16,126.14,18.64964886]
[1743480558062,9.45312248,126.15,126.09,14.327]
[1743480558362,9.45312248,126.1,126.08,1.77136157]
[1743480558561,9.45312248,126.1,126.09,25.38964886]
[1743480559665,9.45312248,126.1,126.09,18.64964886]
[1743480563450,9.45312248,126.11,126.1,18.64964886]
[1743480563650,9.45312248,126.11,126.08,0.063]
[1743480564874,9.45312248,126.11,126.09,0.063]
[1743480568875,9.45312248,126.1,126.09,0.063]
[1743480574169,20.0,126.1,126.09,0.063]
[1743480574371,29.45312248,126.1,126.09,0.063]
[1743480583095,37.38332248,126.1,126.09,0.063]
[1743480583300,48.04103717,126.1,126.09,0.063]
[1743480583812,9.45312248,126.09,126.08,0.063]
[1743480584213,17.38392248,126.09,126.08,0.063]
[1743480586118,23.70959667,126.09,126.08,0.063]
[1743480587549,9.45312248,126.09,126.08,0.063]
[1743480587927,17.38392248,126.09,126.08,0.063]
[1743480589810,23.84834486,126.09,126.08,0.063]
[1743480590017,15.91754486,126.09,126.08,0.063]
[1743480592104,23.84834486,126.09,126.08,0.063]
[1743480592628,17.38392248,126.09,126.08,0.063]
[1743480593624,9.45312248,126.09,126.08,0.063]
[1743480599629,9.45312248,126.11,126.08,18.71264886]
[1743480599816,29.45312248,126.12,126.08,18.71264886]
[1743480601121,12.39324854,126.16,126.11,18.79181043]
[1743480601333,12.39324854,126.16,126.14,7.9276]
[1743480601541,12.39324854,126.16,126.15,18.64964886]
[1743480601847,0.03,126.17,126.15,20.18674886]
[1743480605446,9.48312248,126.17,126.15,20.18674886]
[1743480610037,0.03,126.17,126.15,20.18674886]
[1743480610216,0.03,126.17,126.15,28.11374886]
[1743480610419,0.03,126.17,126.15,20.18674886]
[1743480612742,9.48312248,126.17,126.15,20.18674886]
[1743480616745,0.03,126.17,126.15,20.18674886]
[1743480617578,9.48312248,126.17,126.15,20.18674886]
[1743480618424,9.45312248,126.16,126.15,20.18674886]
[1743480625572,9.48312248,126.17,126.15,20.18674886]
[1743480634562,9.48312248,126.17,126.14,18.933972]
[1743480634749,9.45312248,126.16,126.14,18.933972]
[1743480636472,9.48312248,126.17,126.14,18.933972]
[1743480639171,9.45312248,126.15,126.13,18.64964886]
[1743480639674,9.45312248,126.14,126.1,6.74]
[1743480639861,9.45312248,126.12,126.11,18.64964886]
[1743480642170,9.45312248,126.12,126.09,1.93152314]
[1743480642377,9.45312248,126.11,126.1,18.64964886]
[1743480643152,9.45312248,126.12,126.1,18.64964886]
[1743480643565,9.45312248,126.13,126.1,18.64964886]
[1743480643767,9.45312248,126.13,126.1,25.38964886]
[1743480645181,9.45312248,126.13,126.1,33.31924886]
[1743480646177,9.45312248,126.14,126.11,0.28432314]
[1743480646377,9.45312248,126.15,126.11,0.28432314]
[1743480646592,29.45312248,126.15,126.11,0.28432314]
[1743480646879,9.45312248,126.12,126.1,25.38964886]
[1743480647080,9.45312248,126.11,126.1,25.38964886]
[1743480648076,9.45312248,126.11,126.09,0.063]
[1743480648386,9.45312248,126.1,126.09,25.45264886]
[1743480648766,9.45312248,126.1,126.09,18.71264886]
[1743480652765,17.38332248,126.1,126.09,0.063]
[1743480655790,9.45312248,126.1,126.09,0.063]
[1743480665389,20.0,126.1,126.09,0.063]
[1743480665597,29.45312248,126.1,126.09,0.063]
[1743480673101,9.45312248,126.1,126.09,0.063]
[1743480674711,9.48312248,126.1,126.09,0.063]
[1743480681510,0.03,126.1,126.09,0.063]
[1743480681819,9.48312248,126.1,126.09,0.063]
[1743480691220,0.03,126.1,126.09,0.063]
[1743480705641,9.48312248,126.1,126.09,0.063]
[1743480705941,0.03,126.1,126.09,0.063]
[1743480716937,9.48312248,126.1,126.09,0.063]
[1743480718240,0.03,126.1,126.09,0.063]
[1743480718444,9.48312248,126.1,126.09,0.063]
[1743480722248,0.03,126.1,126.09,0.34732314]
[1743480723168,0.03,126.1,126.09,0.20516157]
[1743480724755,0.03,126.1,126.09,26.927772]
[1743480728854,0.03,126.1,126.09,26.64344886]
[1743480729158,0.03,126.1,126.09,18.71264886]
[1743480729360,0.03,126.1,126.09,26.64344886]
[1743480732456,0.03,126.1,126.09,26.927772]
[1743480732684,0.03,126.1,126.09,33.098672]
[1743480733256,0.0001,126.1,126.09,33.098672]
[1743480733453,0.0001,126.11,126.1,38.933972]
[1743480733661,0.0001,126.11,126.1,18.933972]
[1743480734259,0.0001,126.11,126.1,38.933972]
[1743480735467,0.0001,126.11,126.1,46.864172]
[1743480736979,0.0001,126.11,126.1,48.521172]
[1743480747264,0.0001,126.11,126.1,48.584172]
[1743480764166,0.0001,126.11,126.1,15.01752314]
[1743480764579,0.0001,126.11,126.1,33.667172]
[1743480764767,0.0001,126.11,126.1,26.927172]
[1743480764975,0.0001,126.11,126.1,33.667172]
[1743480785511,9.45322248,126.11,126.1,26.64284886]
[1743480785721,9.45322248,126.11,126.1,33.38284886]
[1743480787613,9.45322248,126.11,126.1,26.64284886]
[1743480788409,9.45322248,126.11,126.1,18.71264886]
[1743480788613,10.95262248,126.11,126.1,18.71264886]
[1743480788796,10.95262248,126.11,126.1,0.063]
[1743480789315,18.88212248,126.11,126.1,0.063]
[1743480793526,18.58299767,126.11,126.1,0.063]
[1743480795505,10.68349767,126.11,126.1,0.063]
[1743480800424,18.61299767,126.11,126.1,0.063]
[1743480806312,18.61299767,126.11,126.09,0.063]
[1743480806509,9.45312248,126.1,126.09,0.063]
[1743480807617,17.38332248,126.1,126.09,0.063]
[1743480808903,17.38332248,126.1,126.08,0.063]
[1743480809108,20.0,126.06,126.05,0.063]
[1743480809411,67.2656124,126.06,126.05,0.063]
[1743480810309,75.1983124,126.06,126.05,0.063]
[1743480817222,67.2656124,126.06,126.05,0.063]
[1743480819934,75.1983124,126.06,126.05,0.063]
[1743480823219,75.1983124,126.06,126.04,0.063]
[1743480823423,9.45312248,126.04,126.03,0.063]
[1743480824749,9.45312248,126.04,126.02,0.063]
[1743480825045,29.45312248,126.03,126.02,0.063]
[1743480825412,37.38772248,126.03,126.02,0.063]
[1743480832421,37.41772248,126.03,126.02,0.063]
[1743480838328,29.48312248,126.03,126.02,0.063]
[1743480839038,37.41772248,126.03,126.02,0.063]
[1743480848689,29.48312248,126.03,126.02,0.063]
[1743480849885,37.41772248,126.03,126.02,0.063]
[1743480852283,29.48312248,126.03,126.02,0.063]
[1743480854493,37.41772248,126.03,126.02,0.063]
[1743480856476,29.48312248,126.03,126.02,0.063]
[1743480856869,9.48312248,126.03,126.02,18.71264886]
[1743480857581,20.03,126.03,126.02,18.71264886]
[1743480857818,0.03,126.03,126.02,24.86104886]
[1743480858174,0.03,126.03,126.02,25.145372]
[1743480858681,9.48312248,126.03,126.02,24.86104886]
[1743480864500,9.48312248,126.03,126.02,18.71264886]
[1743480865693,17.41772248,126.03,126.02,18.71264886]
[1743480872694,17.41772248,126.03,126.02,0.063]
[1743480886008,9.48312248,126.03,126.02,0.063]
[1743480886210,0.03,126.03,126.02,20.35984886]
[1743480886401,0.03,126.03,126.02,26.79794886]
[1743480886707,0.03,126.03,126.02,27.082272]
[1743480886905,9.45312248,126.06,126.03,18.933972]
[1743480890008,9.45312248,126.05,126.03,18.933972]
[1743480891394,9.45312248,126.05,126.03,18.996972]
[1743480892090,9.45312248,126.04,126.03,0.34732314]
[1743480892286,9.45312248,126.04,126.03,18.996972]
[1743480894312,9.45312248,126.04,126.03,0.34732314]
[1743480894615,9.45312248,126.04,126.03,18.996972]
[1743480896714,9.45312248,126.04,126.03,0.34732314]
[1743480896923,9.45312248,126.04,126.03,18.996972]
[1743480897616,9.45312248,126.04,126.03,0.34732314]
[1743480897829,9.45312248,126.04,126.03,18.996972]
[1743480899526,9.45312248,126.04,126.03,0.34732314]
[1743480899736,9.45312248,126.04,126.03,18.996972]
[1743480900732,9.45312248,126.05,126.03,18.996972]
[1743480901625,9.45312248,126.05,126.03,0.34732314]
[1743480901826,9.45312248,126.05,126.03,18.996972]
[1743480902134,9.45312248,126.04,126.03,18.996972]
[1743480903402,9.45312248,126.04,126.03,18.71264886]
[1743480904339,17.38702248,126.04,126.03,0.063]
[1743480906809,9.45312248,126.04,126.03,0.063]
[1743480912533,9.45312248,126.04,126.03,25.45264886]
[1743480912702,9.45312248,126.04,126.03,26.95734886]
[1743480914823,9.48312248,126.04,126.03,26.95734886]
[1743480915202,9.48312248,126.04,126.03,27.241672]
[1743480915720,0.03,126.04,126.03,27.241672]
[1743480917026,0.03,126.04,126.03,41.274572]
[1743480919428,9.48312248,126.04,126.03,27.241672]
[1743480919638,9.48312248,126.04,126.03,25.45264886]
[1743480919820,9.48312248,126.04,126.03,18.71264886]
[1743480923436,17.41702248,126.04,126.03,0.063]
[1743480925135,9.48312248,126.04,126.03,0.063]
[1743480925515,17.41702248,126.04,126.03,0.063]
[1743480928937,9.48312248,126.04,126.03,0.063]
[1743480929633,17.41702248,126.04,126.03,0.063]
[1743480930236,9.48312248,126.04,126.03,0.063]